bitfinex-derivatives/quotes_ETHF0:USTF0_20250501
["timestamp","ask_amount","ask_price","bid_price","bid_amount"]
[1746069521136,1.10474,1810.3,1810.2,7.40059]
[1746069522542,1.10474,1810.3,1810.2,3.788]
[1746069522729,2.72684,1810.3,1810.2,3.788]
[1746069523335,9.34614,1810.3,1810.2,3.788]
[1746069524240,1.10491,1810.0,1809.9,3.2078]
[1746069524842,1.10497,1809.9,1809.8,6.542]
[1746069525245,3.58277,1809.9,1809.8,9.5432]
[1746069525736,3.58277,1809.9,1809.8,6.3354]
[1746069528641,1.10497,1809.9,1809.8,6.3354]
[1746069528841,1.10493,1810.0,1809.9,1.10496]
[1746069529039,1.10493,1810.0,1809.9,3.59536]
[1746069529236,1.10493,1810.0,1809.9,2.4904]
[1746069529646,1.10497,1809.9,1809.8,7.8541]
[1746069530045,1.10497,1809.9,1809.8,9.5164]
[1746069530446,2.78767,1809.9,1809.8,9.5164]
[1746069532351,2.78767,1809.9,1809.8,3.788]
[1746069532548,3.59907,1809.9,1809.8,3.788]
[1746069533853,3.59907,1809.9,1809.8,2.66002]
[1746069533854,8.59907,1809.9,1809.8,2.66002]
[1746069534254,1.1051,1809.7,1809.6,40.8]
[1746069534453,4.6751,1809.7,1809.6,40.8]
[1746069535450,5.4946,1809.7,1809.6,40.8]
[1746069535857,1.10516,1809.6,1809.5,6.2591]
[1746069536155,2.81226,1809.6,1809.5,6.2591]
[1746069536358,2.81226,1809.6,1809.5,47.0591]
[1746069537652,2.81226,1809.6,1809.5,48.16432]
[1746069537853,2.81226,1809.6,1809.5,47.0591]
[1746069543457,2.81226,1809.6,1809.5,3.788]
[1746069543655,11.11703645,1809.6,1809.5,1.37399]
[1746069544165,1.10546,1809.1,1809.0,42.5139]
[1746069544764,3.50256,1809.1,1809.0,40.8]
[1746069545166,3.50256,1809.1,1809.0,44.588]
[1746069545660,1.10546,1809.1,1809.0,5.5019]
[1746069548668,4.67546,1809.2,1809.1,1.10546]
[1746069548868,4.67546,1809.2,1809.1,2.81936]
[1746069549269,4.8544,1809.4,1809.1,1.7139]
[1746069549270,7.88411,1809.4,1809.1,1.7139]
[1746069549569,3.571,1809.4,1809.3,1.10534]
[1746069549965,3.571,1809.4,1809.3,3.62554]
[1746069550164,4.67628,1809.4,1809.3,7.41354]
[1746069550660,3.571,1809.4,1809.3,7.41354]
[1746069550862,1.1052,1809.6,1809.4,1.10522]
[1746069551167,1.1052,1809.6,1809.5,1.5916]
[1746069551361,1.1052,1809.6,1809.5,2.4474]
[1746069552168,4.67614,1809.7,1809.6,1.10515]
[1746069552362,4.67614,1809.7,1809.6,2.69675]
[1746069552560,12.00135556,1809.8,1809.6,2.69675]
[1746069552760,12.00135556,1809.8,1809.7,2.4017]
[1746069553368,4.67608,1809.8,1809.7,2.4017]
[1746069554168,4.67608,1809.8,1809.7,6.1897]
[1746069555170,1.10499,1809.9,1809.8,1.10501]
[1746069555375,4.67499,1809.9,1809.8,4.8249]
[1746069556171,4.67499,1809.9,1809.8,5.4051]
[1746069556869,6.33859,1809.9,1809.8,5.4051]
[1746069558271,6.33859,1809.9,1809.8,3.788]
[1746069558474,15.43298641,1809.9,1809.8,3.788]
[1746069559176,1.10516,1809.6,1809.5,0.8558]
[1746069559866,1.10516,1809.6,1809.5,2.4562]
[1746069560065,2.83266,1809.6,1809.5,2.4562]
[1746069560265,2.83266,1809.6,1809.5,6.2442]
[1746069563064,1.10516,1809.6,1809.5,6.2442]
[1746069565580,1.10516,1809.6,1809.5,3.788]
[1746069565777,1.95976,1809.6,1809.5,3.788]
[1746069565979,3.65926,1809.6,1809.5,3.788]
[1746069568384,8.65926,1809.6,1809.5,3.788]
[1746069568882,8.7562497,1809.6,1809.5,3.788]
[1746069569184,1.1054,1809.2,1809.1,6.6032]
[1746069569684,1.1054,1809.2,1809.1,3.3954]
[1746069569872,2.7794,1809.2,1809.1,3.3954]
[1746069572284,2.7794,1809.2,1809.1,5.6064]
[1746069575884,2.7794,1809.2,1809.1,2.211]
[1746069578187,2.7794,1809.2,1809.1,3.9259]
[1746069590986,2.7794,1809.2,1809.1,2.211]
[1746069591593,2.7794,1809.2,1809.1,3.8443]
[1746069597689,2.7794,1809.2,1809.1,2.211]
[1746069597896,3.5685,1809.2,1809.1,2.211]
[1746069600698,6.7763,1809.2,1809.1,2.211]
[1746069601800,6.7763,1809.2,1809.1,0.5797]
[1746069601996,1.10546,1809.1,1809.0,3.788]
[1746069602197,1.10565,1808.8,1808.7,3.3251]
[1746069602497,1.10565,1808.8,1808.7,44.1251]
[1746069603000,2.75435,1808.8,1808.7,43.2877]
[1746069603195,3.60365,1808.8,1808.7,47.0757]
[1746069604400,2.75435,1808.8,1808.7,47.0757]
[1746069604902,1.10565,1808.8,1808.7,50.2835]
[1746069610597,3.57,1809.0,1808.8,1.10563]
[1746069610807,4.67557,1809.0,1808.9,1.6757]
[1746069611201,4.67557,1809.0,1808.9,5.4637]
[1746069612204,4.67557,1809.0,1808.9,6.2544]
[1746069612794,4.67557,1809.0,1808.9,9.4622]
[1746069613905,4.67557,1809.0,1808.9,10.56778]
[1746069614208,1.10552,1809.0,1808.9,10.56774]
[1746069615603,1.10547,1809.1,1809.0,1.10547]
[1746069615906,1.10536,1809.3,1809.2,1.10536]
[1746069616104,1.10536,1809.3,1809.2,4.31316]
[1746069616502,1.10536,1809.3,1809.2,5.17608]
[1746069616503,1.10534,1809.3,1809.2,5.17608]
[1746069617207,1.10534,1809.3,1809.2,8.96408]
[1746069617908,12.00059556,1809.4,1809.3,1.10534]
[1746069618109,8.43059556,1809.4,1809.3,3.63044]
[1746069618510,7.32527556,1809.4,1809.3,3.63044]
[1746069619103,7.32527556,1809.4,1809.3,7.41844]
[1746069620502,7.32527556,1809.4,1809.3,12.41844]
[1746069620901,7.32527556,1809.4,1809.3,15.98544]
[1746069621196,5.9796,1810.0,1809.7,1.10506]
[1746069621404,8.43234996,1809.9,1809.8,2.476]
[1746069621605,1.10503,1809.8,1809.7,3.2078]
[1746069621804,1.1051,1809.7,1809.6,2.476]
[1746069622210,2.7276,1809.7,1809.6,7.36916]
[1746069622398,2.7276,1809.7,1809.6,48.16916]
[1746069622711,2.7276,1809.7,1809.6,47.064]
[1746069623210,2.7276,1809.7,1809.6,43.276]
[1746069623608,2.7276,1809.7,1809.6,44.38116]
[1746069624012,1.1051,1809.7,1809.6,44.38116]
[1746069626212,1.1051,1809.7,1809.6,43.276]
[1746069626412,1.1051,1809.7,1809.6,40.8]
[1746069626607,2.8098,1809.7,1809.6,40.8]
[1746069627311,1.10516,1809.6,1809.5,3.788]
[1746069627514,1.1054,1809.2,1809.1,3.2321]
[1746069627712,1.1054,1809.2,1809.1,40.8]
[1746069628010,1.10546,1809.1,1809.0,3.2078]
[1746069628207,2.67866,1809.1,1809.0,8.5805]
[1746069628508,2.67866,1809.1,1809.0,49.3805]
[1746069630716,2.67866,1809.1,1809.0,44.588]
[1746069633317,1.5732,1809.1,1809.0,44.588]
[1746069633516,1.5732,1809.1,1809.0,47.31522]
[1746069633818,2.67866,1809.1,1809.0,46.2097]
[1746069636018,2.67866,1809.1,1809.0,47.31522]
[1746069636315,1.10546,1809.1,1809.0,47.31522]
[1746069636518,1.10544,1809.2,1809.1,1.10546]
[1746069636719,1.10546,1809.1,1809.0,47.7958]
[1746069637116,1.10546,1809.1,1809.0,46.3039]
[1746069637719,2.72163,1809.2,1809.0,50.61722]
[1746069638019,2.72163,1809.2,1809.1,1.10546]
[1746069638216,2.72163,1809.2,1809.1,2.82136]
[1746069638516,2.78867,1809.3,1809.1,1.7159]
[1746069638722,1.5745,1809.4,1809.2,2.4467]
[1746069638915,1.10528,1809.4,1809.3,2.4273]
[1746069639114,2.67978,1809.4,1809.3,2.4273]
[1746069639420,1.10534,1809.3,1809.2,4.6397]
[1746069639719,2.67984,1809.3,1809.2,3.788]
[1746069643021,2.67984,1809.3,1809.2,4.8934]
[1746069643217,1.10534,1809.3,1809.2,11.2896]
[1746069643522,1.10534,1809.3,1809.2,8.0818]
[1746069644319,1.10534,1809.3,1809.2,3.788]
[1746069644526,1.91614,1809.3,1809.2,3.788]
[1746069647421,1.10534,1809.3,1809.2,3.788]
[1746069647620,1.10534,1809.3,1809.2,4.6026]
[1746069648027,2.69524,1809.3,1809.2,4.6026]
[1746069649332,2.69524,1809.3,1809.2,6.3043]
[1746069650028,2.69524,1809.3,1809.2,7.1356]
[1746069650632,1.5899,1809.3,1809.2,7.1356]
[1746069650839,6.0423,1809.5,1809.2,10.3434]
[1746069651027,1.10529,1809.4,1809.3,2.77632]
[1746069651738,1.10529,1809.4,1809.3,1.671]
[1746069652138,1.10529,1809.4,1809.3,5.459]
[1746069653237,4.67127,1809.5,1809.3,5.459]
[1746069653437,3.566,1809.5,1809.4,1.671]
[1746069653741,4.67122,1809.5,1809.4,1.671]
[1746069654133,4.67122,1809.5,1809.4,5.459]
[1746069656137,4.67122,1809.5,1809.4,6.56428]
[1746069656938,4.67122,1809.5,1809.4,9.77208]
[1746069657945,3.566,1809.8,1809.4,8.6668]
[1746069658238,1.10517,1809.6,1809.5,3.2374]
[1746069658436,1.10517,1809.6,1809.5,4.34262]
[1746069658836,1.10517,1809.6,1809.5,3.2374]
[1746069659038,1.10511,1809.7,1809.6,1.10511]
[1746069659237,1.10511,1809.7,1809.6,5.92031]
[1746069660239,3.566,1809.8,1809.7,1.1051]
[1746069660538,1.1054,1809.2,1809.1,3.21110974]
[1746069660734,14.53648,1809.8,1809.1,4.31651974]
[1746069660735,1.10538,1809.3,1809.1,4.31651974]
[1746069661543,1.10538,1809.3,1809.2,1.1054]
[1746069661746,1.10538,1809.3,1809.2,3.6042]
[1746069662139,1.52413616,1809.3,1809.2,7.3922]
[1746069663345,0.41875616,1809.3,1809.2,7.3922]
[1746069664241,1.10532,1809.4,1809.2,6.2868]
[1746069664448,1.10532,1809.4,1809.3,3.55384]
[1746069664638,1.10532,1809.4,1809.3,2.4485]
[1746069665139,1.52433224,1809.4,1809.3,6.2365]
[1746069665345,1.52434172,1809.4,1809.3,6.2365]
[1746069665646,1.52434748,1809.4,1809.3,6.2365]
[1746069665846,3.15954748,1809.4,1809.3,6.2365]
[1746069666240,3.15954748,1809.4,1809.3,7.34184]
[1746069666443,3.15941273,1809.4,1809.3,7.34184]
[1746069667538,0.41889273,1809.4,1809.3,10.54964]
[1746069668340,1.10522,1809.5,1809.4,1.10528]
[1746069668645,1.52415071,1809.5,1809.4,2.78068]
[1746069668845,0.41893071,1809.5,1809.4,2.78068]
[1746069669251,0.41893071,1809.5,1809.4,6.56868]
[1746069671845,4.67016,1809.6,1809.4,5.4634]
[1746069672145,4.67016,1809.6,1809.5,3.49532]
[1746069672346,5.08887256,1809.6,1809.5,3.49532]
[1746069673048,6.69577256,1809.6,1809.5,3.49532]
[1746069673236,6.69577256,1809.6,1809.5,7.28332]
[1746069675647,5.59061256,1809.6,1809.5,7.28332]
[1746069676137,6.69577256,1809.6,1809.5,7.28332]
[1746069677349,5.59061256,1809.6,1809.5,7.28332]
[1746069677648,5.59080346,1809.6,1809.5,10.49112]
[1746069678051,3.98390346,1809.6,1809.5,10.49112]
[1746069679351,3.98400785,1809.6,1809.5,10.49112]
[1746069679944,5.65450785,1809.6,1809.5,10.49112]
[1746069680543,2.08950785,1809.6,1809.5,10.49112]
[1746069682453,2.08955961,1809.6,1809.5,10.49112]
[1746069682652,0.41905961,1809.6,1809.5,10.49112]
[1746069682947,3.50318,1809.8,1809.7,1.1051]
[1746069683152,2.3144355,1809.8,1809.7,4.8931]
[1746069684443,7.31299489,1810.1,1809.7,8.1009]
[1746069684644,9.20374489,1810.1,1810.0,1.10491]
[1746069684852,1.89075,1810.1,1810.0,1.10491]
[1746069685252,1.89075,1810.1,1810.0,4.89291]
[1746069685651,0.7859,1810.1,1810.0,4.89291]
[1746069685847,1.89075,1810.1,1810.0,4.89291]
[1746069686047,1.89075,1810.1,1810.0,3.788]
[1746069686248,10.09855,1810.1,1810.0,3.788]
[1746069687148,1.10503,1809.8,1809.7,1.10509]
[1746069687851,1.89893,1809.8,1809.7,1.10509]
[1746069688050,0.7939,1809.8,1809.7,1.10509]
[1746069688251,0.7939,1809.8,1809.7,4.89309]
[1746069689354,1.89893,1809.8,1809.7,4.89309]
[1746069690563,0.7939,1809.8,1809.7,4.89309]
[1746069690863,1.89893,1809.8,1809.7,4.89309]
[1746069691758,1.89893,1809.8,1809.7,3.788]
[1746069691968,10.10673,1809.8,1809.7,3.788]
[1746069692262,1.10522,1809.5,1809.4,2.71046]
[1746069693060,1.10522,1809.5,1809.4,6.49846]
[1746069693565,1.10522,1809.5,1809.4,4.5809]
[1746069693861,1.10522,1809.5,1809.4,3.788]
[1746069694059,5.15812,1809.5,1809.4,3.788]
[1746069694363,3.67112,1809.5,1809.4,3.788]
[1746069695263,2.5659,1809.5,1809.4,4.89328]
[1746069695465,3.67112,1809.5,1809.4,4.89328]
[1746069695767,3.67112,1809.5,1809.4,5.4798]
[1746069696456,4.08370572,1809.5,1809.4,5.4798]
[1746069696660,4.08370572,1809.5,1809.4,6.58508]
[1746069697768,4.08373692,1809.5,1809.4,6.58508]
[1746069699063,4.08373692,1809.5,1809.4,5.4798]
[1746069699263,4.08373692,1809.5,1809.4,6.58508]
[1746069699461,1.51783692,1809.5,1809.4,6.58508]
[1746069699663,1.51779508,1809.5,1809.4,6.58508]
[1746069700163,0.41257508,1809.5,1809.4,6.58508]
[1746069703267,1.10517,1809.6,1809.5,1.10522]
[1746069703562,1.51775763,1809.6,1809.5,2.77172]
[1746069704362,1.51775763,1809.6,1809.5,6.55972]
[1746069704962,1.51769293,1809.6,1809.5,6.55972]
[1746069705159,0.41252031,1809.6,1809.5,6.55972]
[1746069706373,1.51768031,1809.6,1809.5,6.55972]
[1746069707063,1.51755711,1809.6,1809.5,6.55972]
[1746069707264,1.51755711,1809.6,1809.5,3.788]
[1746069707464,3.10575711,1809.6,1809.5,3.788]
[1746069708561,3.10575711,1809.6,1809.5,4.89322]
[1746069708762,3.10581661,1809.6,1809.5,4.89322]
[1746069708963,2.69336,1809.6,1809.5,4.89322]
[1746069709164,3.10582919,1809.6,1809.5,4.89322]
[1746069710566,0.41246919,1809.6,1809.5,4.89322]
[1746069710769,2.81512,1809.7,1809.6,1.10516]
[1746069711067,3.22753172,1809.7,1809.6,3.50006]
[1746069711469,3.22753172,1809.7,1809.6,4.36256]
[1746069711771,2.12241172,1809.7,1809.6,4.36256]
[1746069711974,1.91439,1809.8,1809.7,1.1051]
[1746069712171,1.51750889,1809.8,1809.7,2.8478]
[1746069712469,1.51751265,1809.8,1809.7,2.8478]
[1746069712678,0.41242265,1809.8,1809.7,2.8478]
[1746069712872,0.41242265,1809.8,1809.7,6.0556]
[1746069713371,0.41242265,1809.8,1809.7,9.8436]
[1746069715674,1.51745265,1809.8,1809.7,9.8436]
[1746069715975,1.51755495,1809.8,1809.7,9.8436]
[1746069717978,1.51766171,1809.8,1809.7,9.8436]
[1746069720275,0.41263171,1809.8,1809.7,9.8436]
[1746069720573,1.51766171,1809.8,1809.7,9.8436]
[1746069721578,1.51766645,1809.8,1809.7,9.8436]
[1746069721882,3.10996645,1809.8,1809.7,9.8436]
[1746069723581,3.10991512,1809.8,1809.7,9.8436]
[1746069725383,3.11004995,1809.8,1809.7,9.8436]
[1746069725584,2.69733,1809.8,1809.7,9.8436]
[1746069726077,3.11005624,1809.8,1809.7,9.8436]
[1746069726384,2.69733,1809.8,1809.7,9.8436]
[1746069726574,3.11010173,1809.8,1809.7,9.8436]
[1746069726774,3.11010177,1809.8,1809.7,9.8436]
[1746069727081,3.11010155,1809.8,1809.7,9.8436]
[1746069727282,2.69733,1809.8,1809.7,9.8436]
[1746069727579,3.11014497,1809.8,1809.7,9.8436]
[1746069729288,2.69733,1809.8,1809.7,9.8436]
[1746069729593,3.11028496,1809.8,1809.7,9.8436]
[1746069731894,1.51798496,1809.8,1809.7,9.8436]
[1746069733092,3.16911956,1809.8,1809.7,9.8436]
[1746069736293,2.06408956,1809.8,1809.7,9.8436]
[1746069736497,0.41298956,1809.8,1809.7,9.8436]
[1746069737500,1.10491,1810.0,1809.9,1.10493]
[1746069738000,1.10491,1810.0,1809.9,2.80833]
[1746069738204,1.10491,1810.0,1809.9,6.59633]
[1746069738702,1.10491,1810.0,1809.9,9.80413]
[1746069739204,2.762,1810.1,1810.0,1.10491]
[1746069739403,2.762,1810.1,1810.0,2.72601]
[1746069740103,2.762,1810.1,1810.0,6.51401]
[1746069740401,12.76988489,1810.2,1810.1,1.10485]
[1746069740601,12.76988489,1810.2,1810.1,2.72595]
[1746069741199,14.50438489,1810.2,1810.1,1.6211]
[1746069741503,14.50438489,1810.2,1810.0,4.89288]
[1746069741504,1.10485,1810.1,1810.0,4.89288]
[1746069741697,2.83935,1810.1,1810.0,4.89288]
[1746069741900,2.83935,1810.1,1810.0,3.788]
[1746069742604,2.83935,1810.1,1810.0,4.89291]
[1746069742799,1.7345,1810.1,1810.0,4.89291]
[1746069743005,5.45694,1810.2,1810.1,1.10485]
[1746069743204,5.45694,1810.2,1810.1,2.83315]
[1746069743803,7.19189,1810.2,1810.1,2.83315]
[1746069744403,7.19189,1810.2,1810.1,1.10485]
[1746069750398,6.0871,1810.2,1810.1,2.68595]
[1746069750604,5.296,1810.2,1810.1,5.89375]
[1746069751006,3.561,1810.2,1810.1,5.89375]
[1746069756709,3.561,1810.2,1810.1,2.68595]
[1746069757010,3.561,1810.2,1810.1,5.89375]
[1746069757912,0.8367,1810.4,1810.3,1.10473]
[1746069758603,1.94137,1810.4,1810.3,2.77353]
[1746069758802,0.8367,1810.4,1810.3,2.77353]
[1746069759208,3.63007,1810.5,1810.4,1.10467]
[1746069759607,1.6725,1810.5,1810.4,1.10467]
[1746069759809,3.559,1810.6,1810.5,1.10461]
[1746069760110,3.559,1810.6,1810.5,2.77361]
[1746069760310,3.559,1810.6,1810.5,5.98141]
[1746069760515,3.559,1810.6,1810.5,7.55611]
[1746069760706,8.98549489,1810.7,1810.6,1.10455]
[1746069760911,8.98549489,1810.7,1810.6,43.47925]
[1746069761412,1.6725,1810.7,1810.6,43.47925]
[1746069762214,12.77039489,1810.9,1810.8,1.10442]
[1746069762405,14.36739489,1810.9,1810.8,1.10442]
[1746069763211,14.36739489,1810.9,1810.8,4.89242]
[1746069763411,13.26299489,1810.9,1810.8,4.89242]
[1746069763610,7.31299489,1810.9,1810.8,5.74862]
[1746069763808,7.31299489,1810.9,1810.8,6.60812]
[1746069764213,7.31299489,1810.9,1810.8,49.15022]
[1746069765414,7.02873,1811.2,1811.0,1.10427]
[1746069765619,7.02873,1811.2,1811.1,2.5313]
[1746069767320,1.10424,1811.1,1811.0,3.788]
[1746069767616,2.71504,1811.1,1811.0,3.788]
[1746069768718,2.71504,1811.1,1811.0,4.8923]
[1746069769017,2.71504,1811.1,1811.0,7.4548]
[1746069769610,5.44942,1811.2,1811.0,7.4548]
[1746069769814,7.02252,1811.2,1811.1,1.6872]
[1746069770818,2.3603,1811.2,1811.1,2.79144]
[1746069771019,3.46448,1811.2,1811.1,3.60904]
[1746069771919,1.10424,1811.1,1811.0,4.6545]
[1746069772114,2.67734,1811.1,1811.0,5.7588]
[1746069772415,2.67734,1811.1,1811.0,3.788]
[1746069773620,2.67734,1811.1,1811.0,5.9967]
[1746069775607,2.67734,1811.1,1811.0,7.101]
[1746069776115,2.67734,1811.1,1811.0,8.7187]
[1746069776313,2.67734,1811.1,1811.0,7.6144]
[1746069776718,2.67734,1811.1,1811.0,5.9967]
[1746069779720,2.67734,1811.1,1811.0,7.101]
[1746069779920,1.10421,1811.2,1811.1,1.10422]
[1746069780217,1.10421,1811.2,1811.1,1.7266]
[1746069780822,2.79531,1811.2,1811.1,1.7266]
[1746069786724,2.79531,1811.2,1811.1,2.83084]
[1746069786919,2.79531,1811.2,1811.1,3.62154]
[1746069787127,1.10421,1811.2,1811.1,3.62154]
[1746069787924,1.7172,1811.3,1811.2,1.10418]
[1746069788126,5.44921,1811.4,1811.3,1.10412]
[1746069788127,3.555,1811.4,1811.3,1.10412]
[1746069788520,3.555,1811.4,1811.3,2.79382]
[1746069789225,3.555,1811.4,1811.3,6.58182]
[1746069789713,1.6651,1811.5,1811.3,5.4777]
[1746069789920,2.7691,1811.5,1811.4,3.62516]
[1746069790225,2.7691,1811.5,1811.4,7.41316]
[1746069791023,2.7691,1811.5,1811.4,3.788]
[1746069791828,2.7691,1811.5,1811.4,4.89206]
[1746069794627,2.7691,1811.5,1811.4,3.788]
[1746069797535,1.10424,1811.1,1811.0,5.4165]
[1746069797727,4.65823,1811.2,1811.1,1.10424]
[1746069797927,6.0835,1811.2,1811.1,1.10424]
[1746069798128,6.0835,1811.2,1811.1,2.71364]
[1746069798327,1.10417,1811.3,1811.2,1.10418]
[1746069798528,6.32648,1811.4,1811.3,1.10412]
[1746069798735,3.552,1811.4,1811.3,2.71352]
[1746069799127,4.65606,1811.4,1811.3,2.71352]
[1746069799328,6.32646,1811.4,1811.3,6.50152]
[1746069799538,6.32646,1811.4,1811.3,5.3974]
[1746069800138,6.32646,1811.4,1811.3,6.50152]
[1746069800332,2.77446,1811.4,1811.3,6.50152]
[1746069800529,2.80933,1811.5,1811.3,5.3974]
[1746069800833,1.10403,1811.5,1811.4,1.7003]
[1746069801231,2.76543,1811.5,1811.4,5.4883]
[1746069801434,1.6614,1811.5,1811.4,6.59236]
[1746069802135,2.75158,1811.6,1811.4,6.59231]
[1746069802323,2.75158,1811.6,1811.5,3.3253]
[1746069802727,4.41298,1811.6,1811.5,3.3253]
[1746069803227,4.41298,1811.6,1811.5,7.1133]
[1746069810142,11.72597489,1811.6,1811.5,7.1133]
[1746069811342,11.72597489,1811.6,1811.5,8.2173]
[1746069811642,7.31299489,1811.6,1811.5,8.2173]
[1746069811845,8.41693489,1811.6,1811.5,8.2173]
[1746069812645,7.31299489,1811.6,1811.5,8.2173]
[1746069813243,8.41693489,1811.6,1811.5,10.3211]
[1746069813642,10.11993489,1811.6,1811.5,11.4251]
[1746069814445,2.80694,1811.6,1811.5,11.4251]
[1746069816751,2.80694,1811.6,1811.5,10.3211]
[1746069817043,3.65934,1811.6,1811.5,3.788]
[1746069819945,11.86714,1811.6,1811.5,3.788]
[1746069820247,1.10418,1811.2,1811.1,1.10421]
[1746069820447,1.10418,1811.2,1811.1,2.83451]
[1746069820749,1.10417,1811.3,1811.1,2.83451]
[1746069820944,2.68297,1811.3,1811.1,2.83451]
[1746069821135,2.68297,1811.3,1811.1,1.7303]
[1746069821339,1.5788,1811.3,1811.1,1.7303]
[1746069821549,1.10418,1811.2,1811.1,2.8345]
[1746069821742,2.68297,1811.3,1811.1,2.8345]
[1746069822056,1.10418,1811.2,1811.1,2.8345]
[1746069822254,1.10418,1811.2,1811.1,1.1042]
[1746069823562,2.68296,1811.3,1811.2,1.10418]
[1746069823857,1.10421,1811.2,1811.1,1.1042]
[1746069824756,1.10424,1811.1,1811.0,6.01055]
[1746069825055,1.10424,1811.1,1811.0,9.79855]
[1746069826262,2.79293,1811.2,1811.1,1.10424]
[1746069832066,1.6887,1811.2,1811.1,1.10424]
[1746069832267,2.79288,1811.2,1811.1,1.10424]
[1746069833067,1.10418,1811.2,1811.1,1.10424]
[1746069833663,1.10418,1811.2,1811.1,2.73544]
[1746069834362,2.79008,1811.2,1811.1,2.73544]
[1746069834767,1.10424,1811.1,1811.0,5.4865]
[1746069834968,3.57754,1811.1,1811.0,5.4865]
[1746069835166,3.57754,1811.1,1811.0,1.6985]
[1746069837571,1.1043,1811.0,1810.9,2.5959]
[1746069837771,2.7308,1811.0,1810.9,2.5959]
[1746069838066,2.7308,1811.0,1810.9,6.3839]
[1746069839268,2.7308,1811.0,1810.9,2.5959]
[1746069842171,2.7308,1811.0,1810.9,6.3839]
[1746069843271,2.7308,1811.0,1810.9,2.5959]
[1746069845069,2.7308,1811.0,1810.9,6.3839]
[1746069846173,2.7308,1811.0,1810.9,2.5959]
[1746069847571,1.1043,1811.0,1810.9,3.70026]
[1746069847777,1.10429,1811.1,1811.0,1.10427]
[1746069847979,1.10429,1811.1,1811.0,1.7276]
[1746069848275,1.10429,1811.1,1811.0,5.5156]
[1746069856276,1.7136,1811.2,1811.0,6.6199]
[1746069856477,1.10418,1811.2,1811.1,2.4541]
[1746069856673,1.10418,1811.2,1811.1,3.3217]
[1746069858178,1.10416,1811.3,1811.2,1.10417]
[1746069858380,4.65416,1811.3,1811.2,1.6846]
[1746069859180,4.65416,1811.3,1811.2,5.4726]
[1746069859781,1.10409,1811.4,1811.3,1.10412]
[1746069859975,1.10409,1811.4,1811.3,6.80562]
[1746069860171,1.10409,1811.4,1811.3,10.59362]
[1746069860383,1.10409,1811.4,1811.3,6.2817]
[1746069862272,2.74539,1811.4,1811.3,6.2817]
[1746069862785,3.54119,1811.4,1811.3,3.788]
[1746069864384,3.54119,1811.4,1811.3,5.4493]
[1746069864884,2.74539,1811.4,1811.3,5.4493]
[1746069865689,2.74539,1811.4,1811.3,6.55342]
[1746069865880,1.10409,1811.4,1811.3,9.76122]
[1746069866081,1.10409,1811.4,1811.3,8.6571]
[1746069866281,1.10409,1811.4,1811.3,5.4493]
[1746069867286,2.75719,1811.4,1811.3,5.4493]
[1746069868989,2.75719,1811.4,1811.3,3.788]
[1746069870490,2.75719,1811.4,1811.3,5.9963]
[1746069874394,8.41697489,1811.6,1811.4,1.10402]
[1746069874585,8.41697489,1811.6,1811.5,2.5365]
[1746069874992,9.24187489,1811.6,1811.5,2.5365]
[1746069875289,9.24187489,1811.6,1811.5,6.3245]
[1746069875491,7.31299489,1811.6,1811.5,7.4285]
[1746069876394,2.73733,1811.7,1811.5,7.4285]
[1746069876691,2.73733,1811.7,1811.6,1.5755]
[1746069876990,2.73733,1811.7,1811.6,2.4288]
[1746069878595,2.73733,1811.7,1811.6,3.53274]
[1746069879894,1.6334,1811.7,1811.6,3.53274]
[1746069880094,8.4442,1811.8,1811.6,3.53274]
[1746069880282,1.10388,1811.7,1811.6,1.95724]
[1746069881991,2.81098,1811.7,1811.6,1.95724]
[1746069886597,1.10394,1811.6,1811.5,8.91516]
[1746069886800,2.77834,1811.6,1811.5,6.9958]
[1746069887700,2.77834,1811.6,1811.5,8.0998]
[1746069890397,2.77834,1811.6,1811.5,6.9958]
[1746069890592,2.77834,1811.6,1811.5,8.0998]
[1746069891897,2.77834,1811.6,1811.5,6.9958]
[1746069896103,2.77834,1811.6,1811.5,3.788]
[1746069902106,1.10394,1811.6,1811.5,4.892]
[1746069902306,4.64793,1811.7,1811.5,7.33504]
[1746069902508,1.10394,1811.6,1811.5,4.6182]
[1746069902905,3.60244,1811.6,1811.5,4.6182]
[1746069904208,3.60244,1811.6,1811.5,7.4381]
[1746069904607,2.77344,1811.6,1811.5,7.4381]
[1746069904909,1.10394,1811.6,1811.5,7.4381]
[1746069905104,4.64792,1811.7,1811.6,1.10394]
[1746069905314,4.64792,1811.7,1811.6,3.68964]
[1746069905808,4.64792,1811.7,1811.6,2.5857]
[1746069906212,4.64792,1811.7,1811.6,3.68964]
[1746069906504,1.10392,1811.7,1811.6,3.68964]
[1746069906697,1.10392,1811.7,1811.6,2.5857]
[1746069913821,4.64784,1811.8,1811.7,1.10388]
[1746069914025,4.64784,1811.8,1811.7,2.5265]
[1746069914217,4.64784,1811.8,1811.7,6.3145]
[1746069920227,4.64784,1811.8,1811.7,7.41838]
[1746069922032,4.64784,1811.8,1811.7,6.3145]
[1746069925135,4.64784,1811.8,1811.7,7.41838]
[1746069926926,4.64784,1811.8,1811.7,6.3145]
[1746069927326,6.34124,1811.8,1811.7,6.3145]
[1746069931739,6.34124,1811.8,1811.7,3.788]
[1746069936043,13.65423489,1811.8,1811.7,3.788]
[1746069936435,14.47163489,1811.8,1811.7,3.788]
[1746069937544,13.36779489,1811.8,1811.7,3.788]